[Event "34th MPL National U12 Chess-ch 2022"]
[Site "Mysore"]
[Date "2022.04.09"]
[Round "2.6"]
[White "Jain, Kushagra"]
[Black "Avyaya Kumara Bhat"]
[Result "1-0"]
[ECO "C96"]
[WhiteElo "1452"]
[BlackElo "1203"]
[Annotator "NA RC"]
[PlyCount "121"]
[EventDate "2022.04.09"]
[EventCountry "IND"]
[SourceTitle "playchess.com"]
[Source "ChessBase"]
[SourceQuality "1"]
[TimeControl "5400+30"]

1. e4 {[%emt 0:00:06]} e5 {[%emt 0:00:06]} 2. Nf3 {[%emt 0:00:05]} Nc6 {[%emt 0:00:05]} 3. Bb5 {[%emt 0:00:04]} a6 {[%emt 0:00:09]} 4. Ba4 {[%emt 0:00:05]} Nf6 {[%emt 0:00:09]} 5. O-O {[%emt 0:00:08]} Be7 {[%emt 0:00:17]} 6. Re1 {[%emt 0:00:15]} b5 {[%emt 0:00:06]} 7. Bb3 {[%emt 0:00:11]} d6 {[%emt 0:00:17]} 8. c3 {[%emt 0:00:20]} O-O {[%emt 0:00:17]} 9. h3 {[%emt 0:00:15]} Na5 {[%emt 0:00:16]} 10. Bc2 {[%emt 0:00:04]} c5 {[%emt 0:00:14]} 11. d4 {[%emt 0:00:02]} Nc6 {[%emt 0:00:18]} 12. d5 {[%emt 0:02:52]} Nb8 {[%emt 0:00:16]} 13. Nbd2 {[%emt 0:01:37]} Re8 {[%emt 0:01:06]} 14. Nf1 {[%emt 0:03:08]} Nbd7 {[%emt 0:00:40]} 15. Ng3 {[%emt 0:00:26]} g6 {[%emt 0:00:15]} 16. Be3 {[%emt 0:01:59]} Bb7 {[%emt 0:00:35]} 17. Qd2 {[%emt 0:03:17]} c4 {[%emt 0:00:50]} 18. Nh2 {[%emt 0:12:16]} Qc7 {[%emt 0:01:53]} 19. Ng4 {[%emt 0:04:34]} Nc5 {[%emt 0:01:43]} 20. Nh6+ {[%emt 0:01:14]} Kf8 {[%emt 0:01:13]} 21. Nhf5 {[%emt 0:05:19]} Bd8 {[%emt 0:05:55]} 22. Bxc5 {[%emt 0:00:32]} Re6 {[%emt 0:02:27]} 23. dxe6 {[%emt 0:01:09]} dxc5 {[%emt 0:00:31]} 24. Qh6+ {[%emt 0:00:33]} Ke8 {[%emt 0:00:16]} 25. exf7+ {[%emt 0:00:05]} Kxf7 {[%emt 0:00:32]} 26. Qg7+ {[%emt 0:00:35]} Ke6 {[%emt 0:00:15]} 27. Qxc7 {[%emt 0:00:05]} Bxc7 {[%emt 0:00:07]} 28. Ne3 {[%emt 0:00:02]} h5 {[%emt 0:00:25]} 29. h4 {[%emt 0:00:26]} Rf8 {[%emt 0:00:48]} 30. Rad1 {[%emt 0:00:14]} Bd8 {[%emt 0:00:47]} 31. Nd5 {[%emt 0:00:22]} Ng4 {[%emt 0:00:22]} 32. f3 {[%emt 0:00:45]} Bxh4 {[%emt 0:00:34]} 33. fxg4 {[%emt 0:00:08]} Bxg3 {[%emt 0:00:16]} 34. Rf1 {[%emt 0:00:11]} Bf4 {[%emt 0:00:22]} 35. g3 {[%emt 0:00:32]} Bh6 {[%emt 0:00:35]} 36. Rxf8 {[%emt 0:00:04]} Bxf8 {[%emt 0:00:07]} 37. gxh5 {[%emt 0:00:04]} gxh5 {[%emt 0:00:12]} 38. Kf2 {[%emt 0:01:03]} Kf7 {[%emt 0:00:36]} 39. Ke2 {[%emt 0:00:40]} Bc8 {[%emt 0:00:23]} 40. Rf1+ {[%emt 0:00:10]} Kg7 {[%emt 0:00:11]} 41. Rf6 {[%emt 0:02:26]} Bg4+ {[%emt 0:00:31]} 42. Kf2 {[%emt 0:00:51]} Be7 {[%emt 0:00:29]} 43. Rxa6 {[%emt 0:00:19]} Bg5 {[%emt 0:00:11]} 44. Rb6 {[%emt 0:00:13]} h4 {[%emt 0:00:36]} 45. gxh4 {[%emt 0:00:18]} Bxh4+ {[%emt 0:00:08]} 46. Kg2 {[%emt 0:00:22]} Be2 {[%emt 0:00:21]} 47. Rxb5 {[%emt 0:00:29]} Bg5 {[%emt 0:00:19]} 48. a4 {[%emt 0:00:37]} Bg4 {[%emt 1:25:29]} 49. a5 {[%emt 0:00:18]} Bc8 {[%emt 0:00:00]} 50. Rxc5 {[%emt 0:00:04]} Ba6 {[%emt 0:00:00]} 51. Nb4 {[%emt 0:00:12]} Be7 {[%emt 0:00:00]} 52. Nxa6 {[%emt 0:00:05]} Bxc5 {[%emt 0:00:00]} 53. Nxc5 {[%emt 0:00:01]} Kg6 {[%emt 0:00:00]} 54. a6 {[%emt 0:00:02]} Kg5 {[%emt 0:00:00]} 55. a7 {[%emt 0:00:04]} Kf4 {[%emt 0:00:00]} 56. Kf2 {[%emt 0:00:10]} Kg4 {[%emt 0:00:00]} 57. a8=Q {[%emt 0:00:05]} Kf4 {[%emt 0:00:00]} 58. Ne6+ {[%emt 0:00:13]} Kg4 {[%emt 0:00:00]} 59. Qg8+ {[%emt 0:00:04]} Kh4 {[%emt 0:00:00]} 60. Qg5+ {[%emt 0:00:15]} Kh3 {[%emt 0:00:00]} 61. Qg3# {[%emt 0:00:36]} 1-0

[Event "34th MPL National U12 Chess-ch 2022"]
[Site "Mysore"]
[Date "2022.04.10"]
[Round "3.1"]
[White "Adireddy Arjun"]
[Black "Ehaan Shaikh"]
[Result "1-0"]
[ECO "B36"]
[WhiteElo "1796"]
[BlackElo "1369"]
[Annotator "NA RC"]
[PlyCount "101"]
[EventDate "2022.04.09"]
[EventCountry "IND"]
[SourceTitle "playchess.com"]
[Source "ChessBase"]
[SourceQuality "1"]
[TimeControl "5400+30"]

1. e4 {[%emt 0:00:07]} c5 {[%emt 0:00:04]} 2. Nf3 {[%emt 0:00:14]} g6 {[%emt 0:00:12]} 3. d4 {[%emt 0:00:04]} cxd4 {[%emt 0:00:04]} 4. Nxd4 {[%emt 0:00:08]} Nc6 {[%emt 0:00:52]} 5. c4 {[%emt 0:00:05]} Nf6 {[%emt 0:00:14]} 6. Nc3 {[%emt 0:00:08]} d6 {[%emt 0:00:03]} 7. Be2 {[%emt 0:00:23]} Nxd4 {[%emt 0:00:16]} 8. Qxd4 {[%emt 0:00:07]} Bg7 {[%emt 0:00:05]} 9. Be3 {[%emt 0:02:29]} O-O {[%emt 0:00:10]} 10. Qd1 {[%emt 0:01:00]} Bd7 {[%emt 0:01:19]} 11. f3 {[%emt 0:07:10]} a5 {[%emt 0:04:52]} 12. a4 {[%emt 0:08:03]} Bc6 {[%emt 0:02:59]} 13. Qd2 {[%emt 0:01:54]} Nd7 {[%emt 0:02:15]} 14. b3 {[%emt 0:01:20]} Nc5 {[%emt 0:02:33]} 15. Rb1 {[%emt 0:02:00]} Qc8 {[%emt 0:09:22]} 16. O-O {[%emt 0:15:09]} h5 {[%emt 0:01:52]} 17. Nd5 {[%emt 0:01:29]} Bxd5 {[%emt 0:00:48]} 18. cxd5 {[%emt 0:00:39]} Qb8 {[%emt 0:06:49]} 19. Rfc1 {[%emt 0:02:31]} Qd8 {[%emt 0:02:02]} 20. Bb5 {[%emt 0:12:48]} Kh7 {[%emt 0:07:12]} 21. Bxc5 {[%emt 0:09:03]} dxc5 {[%emt 0:00:35]} 22. Rxc5 {[%emt 0:00:03]} Qb6 {[%emt 0:00:19]} 23. Qf2 {[%emt 0:00:11]} Rac8 {[%emt 0:00:40]} 24. Rc4 {[%emt 0:07:28]} Rxc4 {[%emt 0:01:08]} 25. Qxb6 {[%emt 0:00:02]} Bd4+ {[%emt 0:00:08]} 26. Kf1 {[%emt 0:00:01]} Bxb6 {[%emt 0:00:25]} 27. Bxc4 {[%emt 0:00:11]} Bc5 {[%emt 0:00:23]} 28. f4 {[%emt 0:00:50]} Kg7 {[%emt 0:01:18]} 29. Ke2 {[%emt 0:01:34]} b6 {[%emt 0:01:59]} 30. Kd3 {[%emt 0:01:10]} f6 {[%emt 0:01:09]} 31. Bb5 {[%emt 0:00:44]} Rc8 {[%emt 0:01:06]} 32. Bc6 {[%emt 0:00:24]} Kf8 {[%emt 0:03:06]} 33. Kc4 {[%emt 0:05:27]} Rd8 {[%emt 0:03:38]} 34. b4 {[%emt 0:14:50]} axb4 {[%emt 0:16:13]} 35. a5 {[%emt 0:00:05]} Bd6 {[%emt 0:00:27]} 36. a6 {[%emt 0:01:08]} Bb8 {[%emt 0:01:00]} 37. Rxb4 {[%emt 0:00:01]} Ba7 {[%emt 0:00:06]} 38. e5 {[%emt 0:00:07]} f5 {[%emt 0:00:28]} 39. Kb5 {[%emt 0:04:08]} Rc8 {[%emt 0:01:37]} 40. Rd4 {[%emt 0:01:16]} Rd8 {[%emt 0:04:12]} 41. d6 {[%emt 0:01:24]} exd6 {[%emt 0:02:37]} 42. exd6 {[%emt 0:00:25]} Kf7 {[%emt 0:00:50]} 43. Bb7 {[%emt 0:00:24]} Ke6 {[%emt 0:00:06]} 44. d7 {[%emt 0:00:06]} Ke7 {[%emt 0:00:26]} 45. Bc8 {[%emt 0:00:05]} Rf8 {[%emt 0:00:40]} 46. Kc6 {[%emt 0:00:21]} b5 {[%emt 0:01:43]} 47. Rd5 {[%emt 0:00:32]} b4 {[%emt 0:00:16]} 48. Kb7 {[%emt 0:04:42]} Bg1 {[%emt 0:00:53]} 49. a7 {[%emt 0:00:00]} b3 {[%emt 0:00:18]} 50. a8=Q {[%emt 0:00:00]} b2 {[%emt 0:00:07]} 51. Qa3+ {[%emt 0:00:00]} 1-0

[Event "34th MPL National U12 Chess-ch 2022"]
[Site "Mysore"]
[Date "2022.04.10"]
[Round "3.2"]
[White "Mitul K H"]
[Black "Vaz, Ethan"]
[Result "0-1"]
[ECO "B92"]
[WhiteElo "1347"]
[BlackElo "1384"]
[Annotator "NA RC"]
[PlyCount "74"]
[EventDate "2022.04.09"]
[EventCountry "IND"]
[SourceTitle "playchess.com"]
[Source "ChessBase"]
[SourceQuality "1"]
[TimeControl "5400+30"]

1. e4 {[%emt 0:00:04]} c5 {[%emt 0:00:11]} 2. Nf3 {[%emt 0:00:05]} d6 {[%emt 0:00:06]} 3. d4 {[%emt 0:00:04]} cxd4 {[%emt 0:00:11]} 4. Nxd4 {[%emt 0:00:06]} Nf6 {[%emt 0:00:06]} 5. Nc3 {[%emt 0:00:05]} a6 {[%emt 0:00:04]} 6. Be2 {[%emt 0:00:04]} e5 {[%emt 0:00:34]} 7. Nf3 {[%emt 0:00:06]} h6 {[%emt 0:02:07]} 8. Nd2 {[%emt 0:00:12]} Nc6 {[%emt 0:11:02]} 9. a4 {[%emt 0:10:27]} Nd4 {[%emt 0:08:04]} 10. Nc4 {[%emt 0:03:35]} Be6 {[%emt 0:05:15]} 11. Ne3 {[%emt 0:08:17]} Rc8 {[%emt 0:03:40]} 12. O-O {[%emt 0:03:05]} Be7 {[%emt 0:05:45]} 13. f4 {[%emt 0:08:20]} Nxe2+ {[%emt 0:08:30]} 14. Qxe2 {[%emt 0:02:07]} exf4 {[%emt 0:00:49]} 15. Rxf4 {[%emt 0:01:50]} O-O {[%emt 0:02:46]} 16. a5 {[%emt 0:17:00]} Rc5 {[%emt 0:14:03]} 17. Nf5 {[%emt 0:07:34]} Bxf5 {[%emt 0:02:14]} 18. Rxf5 {[%emt 0:01:26]} Rxf5 {[%emt 0:02:01]} 19. exf5 {[%emt 0:00:10]} d5 {[%emt 0:02:06]} 20. Be3 {[%emt 0:04:07]} Re8 {[%emt 0:11:34]} 21. Qd3 {[%emt 0:04:05]} Ng4 {[%emt 0:05:04]} 22. Bd4 {[%emt 0:08:34]} Bc5 {[%emt 0:07:46]} 23. Bxc5 {[%emt 0:01:03]} Qc7 {[%emt 0:00:08]} 24. Bf2 {[%emt 0:05:34]} Qxh2+ {[%emt 0:00:13]} 25. Kf1 {[%emt 0:00:04]} Qh1+ {[%emt 0:00:16]} 26. Bg1 {[%emt 0:00:06]} Ne3+ {[%emt 0:00:21]} 27. Ke2 {[%emt 0:01:25]} Qxg2+ {[%emt 0:00:18]} 28. Bf2 {[%emt 0:00:17]} Nc4+ {[%emt 0:00:40]} 29. Ne4 {[%emt 0:01:16]} Rxe4+ {[%emt 0:00:08]} 30. Qxe4 {[%emt 0:00:44]} Qxe4+ {[%emt 0:00:11]} 31. Kd1 {[%emt 0:01:18]} Qh1+ {[%emt 0:00:48]} 32. Be1 {[%emt 0:00:29]} Qf3+ {[%emt 0:00:16]} 33. Kc1 {[%emt 0:00:05]} Qe2 {[%emt 0:00:06]} 34. Kb1 {[%emt 0:00:18]} Qxe1+ {[%emt 0:00:07]} 35. Ka2 {[%emt 0:00:05]} Qb4 {[%emt 0:00:04]} 36. b3 {[%emt 0:00:14]} Qa3+ {[%emt 0:00:04]} 37. Kb1 {[%emt 0:00:04]} Qb2# {[%emt 0:00:03]} 0-1

[Event "34th MPL National U12 Chess-ch 2022"]
[Site "Mysore"]
[Date "2022.04.10"]
[Round "3.3"]
[White "Muthukumar, Mukesh"]
[Black "Gaikwad Manas"]
[Result "1-0"]
[ECO "E92"]
[WhiteElo "1287"]
[BlackElo "1698"]
[Annotator "NA RC"]
[PlyCount "129"]
[EventDate "2022.04.09"]
[EventCountry "IND"]
[SourceTitle "playchess.com"]
[Source "ChessBase"]
[SourceQuality "1"]
[TimeControl "5400+30"]

1. d4 {[%emt 0:00:04]} Nf6 {[%emt 0:00:13]} 2. c4 {[%emt 0:00:06]} g6 {[%emt 0:00:04]} 3. Nf3 {[%emt 0:00:07]} Bg7 {[%emt 0:00:06]} 4. Nc3 {[%emt 0:00:14]} O-O {[%emt 0:00:07]} 5. e4 {[%emt 0:00:13]} d6 {[%emt 0:00:06]} 6. Be2 {[%emt 0:00:10]} e5 {[%emt 0:00:10]} 7. d5 {[%emt 0:00:35]} Na6 {[%emt 0:00:25]} 8. Be3 {[%emt 0:03:10]} Ng4 {[%emt 0:01:31]} 9. Bg5 {[%emt 0:01:33]} Qe8 {[%emt 0:01:23]} 10. h3 {[%emt 0:00:30]} Nf6 {[%emt 0:00:16]} 11. Bxf6 {[%emt 0:07:19]} Bxf6 {[%emt 0:00:24]} 12. h4 {[%emt 0:01:42]} Bg4 {[%emt 0:12:40]} 13. Nd2 {[%emt 0:10:53]} Bxe2 {[%emt 0:00:50]} 14. Qxe2 {[%emt 0:00:25]} Bg7 {[%emt 0:01:55]} 15. h5 {[%emt 0:05:34]} f5 {[%emt 0:00:09]} 16. h6 {[%emt 0:01:15]} Bh8 {[%emt 0:00:15]} 17. O-O-O {[%emt 0:09:24]} Nc5 {[%emt 0:01:35]} 18. Rh3 {[%emt 0:07:03]} a6 {[%emt 0:03:21]} 19. Rf1 {[%emt 0:04:06]} Rb8 {[%emt 0:01:32]} 20. exf5 {[%emt 0:09:28]} Rxf5 {[%emt 0:00:40]} 21. Nde4 {[%emt 0:01:16]} Nxe4 {[%emt 0:01:10]} 22. Nxe4 {[%emt 0:00:14]} b5 {[%emt 0:00:11]} 23. Ra3 {[%emt 0:06:58]} Qc8 {[%emt 0:04:59]} 24. cxb5 {[%emt 0:02:39]} Rxb5 {[%emt 0:01:45]} 25. Rd1 {[%emt 0:12:17]} Rf4 {[%emt 0:06:05]} 26. Qc2 {[%emt 0:00:48]} Qb7 {[%emt 0:02:00]} 27. g3 {[%emt 0:02:11]} Rf7 {[%emt 0:07:38]} 28. Rad3 {[%emt 0:03:24]} Bf6 {[%emt 0:02:09]} 29. Nxf6+ {[%emt 0:00:25]} Rxf6 {[%emt 0:01:55]} 30. Qd2 {[%emt 0:00:40]} Rb4 {[%emt 0:02:13]} 31. a3 {[%emt 0:01:16]} Rc4+ {[%emt 0:00:31]} 32. Kb1 {[%emt 0:01:13]} Qb6 {[%emt 0:00:42]} 33. f3 {[%emt 0:01:16]} Qb8 {[%emt 0:05:14]} 34. Rc1 {[%emt 0:01:04]} Rxc1+ {[%emt 0:01:16]} 35. Qxc1 {[%emt 0:00:12]} Rf7 {[%emt 0:00:02]} 36. Qh1 {[%emt 0:03:32]} Qf8 {[%emt 0:00:08]} 37. Ka2 {[%emt 0:01:40]} Rf6 {[%emt 0:01:19]} 38. Kb3 {[%emt 0:01:28]} Qf7 {[%emt 0:00:47]} 39. Kc3 {[%emt 0:00:11]} c6 {[%emt 0:00:39]} 40. dxc6 {[%emt 0:00:30]} d5 {[%emt 0:00:07]} 41. Qh3 {[%emt 0:00:28]} Rxc6+ {[%emt 0:00:06]} 42. Kd2 {[%emt 0:00:30]} Qb7 {[%emt 0:00:26]} 43. b4 {[%emt 0:03:12]} Qc7 {[%emt 0:00:22]} 44. Rxd5 {[%emt 0:00:19]} Rc2+ {[%emt 0:00:04]} 45. Kd1 {[%emt 0:00:27]} Rc1+ {[%emt 0:00:09]} 46. Ke2 {[%emt 0:00:12]} Qc4+ {[%emt 0:02:22]} 47. Rd3 {[%emt 0:00:46]} e4 {[%emt 0:00:11]} 48. fxe4 {[%emt 0:00:28]} Qc2+ {[%emt 0:01:27]} 49. Ke3 {[%emt 0:00:18]} Re1+ {[%emt 0:00:05]} 50. Kd4 {[%emt 0:00:10]} Qc6 {[%emt 0:00:53]} 51. Qh4 {[%emt 0:00:42]} Qd6+ {[%emt 0:01:14]} 52. Kc3 {[%emt 0:00:20]} Qe5+ {[%emt 0:00:06]} 53. Kd2 {[%emt 0:00:17]} Rxe4 {[%emt 0:05:56]} 54. Rd8+ {[%emt 0:00:10]} Kf7 {[%emt 0:00:04]} 55. Rd7+ {[%emt 0:00:07]} Kg8 {[%emt 0:00:16]} 56. Qd8+ {[%emt 0:00:59]} Qe8 {[%emt 0:00:03]} 57. Qxe8+ {[%emt 0:00:28]} Rxe8 {[%emt 0:00:08]} 58. Rd6 {[%emt 0:00:09]} Ra8 {[%emt 0:00:22]} 59. Kd3 {[%emt 0:00:24]} Kf7 {[%emt 0:00:08]} 60. Kd4 {[%emt 0:00:41]} Ke7 {[%emt 0:00:14]} 61. Kc5 {[%emt 0:00:42]} a5 {[%emt 0:00:52]} 62. b5 {[%emt 0:00:09]} Rf8 {[%emt 0:00:17]} 63. Rd3 {[%emt 0:00:20]} Rf1 {[%emt 0:00:11]} 64. Kb6 {[%emt 0:00:11]} a4 {[%emt 0:00:03]} 65. Ka7 {[%emt 0:00:10]} 1-0

[Event "34th MPL National U12 Chess-ch 2022"]
[Site "Mysore"]
[Date "2022.04.10"]
[Round "3.4"]
[White "Tanmay Rajbongshi"]
[Black "Sriram Adarsh Uppala"]
[Result "0-1"]
[ECO "B99"]
[WhiteElo "1516"]
[BlackElo "1345"]
[Annotator "NA RC"]
[PlyCount "92"]
[EventDate "2022.04.09"]
[EventCountry "IND"]
[SourceTitle "playchess.com"]
[Source "ChessBase"]
[SourceQuality "1"]
[TimeControl "5400+30"]

1. e4 c5 2. Nf3 d6 3. d4 cxd4 4. Nxd4 Nf6 5. Nc3 a6 6. Bg5 e6 7. f4 Be7 8. Qf3 Qc7 9. O-O-O Nbd7 10. Be2 b5 11. a3 Bb7 12. Qe3 Rc8 13. Bf3 h6 14. Bh4 g5 15. fxg5 Nh7 16. Bh5 hxg5 17. Nxe6 Qc4 18. Ng7+ Kd8 19. Rd4 gxh4 20. Qf2 Qc5 21. Bxf7 Qg5+ 22. Kb1 Qxg7 23. Bd5 Rf8 24. Qd2 Bf6 25. Bxb7 Bxd4 26. Bxc8 Kxc8 27. Nd5 Kb7 28. Rd1 Bc5 29. b4 Ba7 30. Nf4 Qf7 31. g3 {[%emt 1:46:00]} hxg3 {[%emt 1:46:00]} 32. hxg3 {[%emt 0:00:30]} Nb6 {[%emt 0:00:30]} 33. Qxd6 {[%emt 0:00:30]} Bb8 {[%emt 0:00:30]} 34. Qh6 {[%emt 0:00:30]} Rc8 {[%emt 0:00:30]} 35. Nd5 {[%emt 0:00:30]} Rc6 {[%emt 0:00:30]} 36. Qh3 {[%emt 0:00:30]} Rd6 {[%emt 0:00:30]} 37. Rf1 {[%emt 0:00:30]} Qd7 38. Qh5 Nxd5 39. Rf7 Ne7 40. Qxh7 Rd1+ 41. Ka2 Qe6+ 42. Kb2 Qe5+ 43. c3 Rd2+ 44. Kb1 Bd6 45. Rf3 Re2 46. Rd3 Qe6 0-1

[Event "34th MPL National U12 Chess-ch 2022"]
[Site "Mysore"]
[Date "2022.04.10"]
[Round "3.5"]
[White "Vatsal Singla"]
[Black "Jain, Kushagra"]
[Result "0-1"]
[ECO "B22"]
[WhiteElo "1380"]
[BlackElo "1452"]
[Annotator "NA RC"]
[PlyCount "108"]
[EventDate "2022.04.09"]
[EventCountry "IND"]
[SourceTitle "playchess.com"]
[Source "ChessBase"]
[SourceQuality "1"]
[TimeControl "5400+30"]

1. e4 {[%emt 0:00:01]} c5 {[%emt 0:00:07]} 2. d4 {[%emt 0:00:26]} cxd4 {[%emt 0:00:08]} 3. c3 {[%emt 0:00:04]} Nf6 {[%emt 0:00:11]} 4. e5 {[%emt 0:00:09]} Nd5 {[%emt 0:00:04]} 5. Nf3 {[%emt 0:00:51]} e6 {[%emt 0:00:36]} 6. cxd4 {[%emt 0:01:03]} d6 {[%emt 0:00:05]} 7. Nc3 {[%emt 0:04:04]} Nc6 {[%emt 0:00:06]} 8. exd6 {[%emt 0:06:51]} Bxd6 {[%emt 0:00:13]} 9. Bc4 {[%emt 0:01:11]} O-O {[%emt 0:00:27]} 10. O-O {[%emt 0:00:11]} Nxc3 {[%emt 0:01:42]} 11. bxc3 {[%emt 0:00:08]} Qc7 {[%emt 0:00:08]} 12. Bd3 {[%emt 0:03:45]} h6 {[%emt 0:04:44]} 13. Qe2 {[%emt 0:06:39]} Ne7 {[%emt 0:07:09]} 14. c4 {[%emt 0:04:36]} b6 {[%emt 0:06:59]} 15. Qe4 {[%emt 0:14:43]} f5 {[%emt 0:00:12]} 16. Qe2 {[%emt 0:00:29]} Bd7 {[%emt 0:00:27]} 17. Bb2 {[%emt 0:02:02]} Ng6 {[%emt 0:04:44]} 18. g3 {[%emt 0:00:32]} Rae8 {[%emt 0:00:24]} 19. Rfe1 {[%emt 0:01:40]} Bc6 {[%emt 0:01:05]} 20. d5 {[%emt 0:23:43]} exd5 {[%emt 0:16:08]} 21. Qc2 {[%emt 0:00:59]} Rxe1+ {[%emt 0:08:21]} 22. Rxe1 {[%emt 0:00:29]} Qd7 {[%emt 0:03:46]} 23. Qb3 {[%emt 0:15:38]} Bc5 {[%emt 0:02:45]} 24. cxd5 {[%emt 0:01:44]} Bxd5 {[%emt 0:00:16]} 25. Bc4 {[%emt 0:00:10]} Bxc4 {[%emt 0:00:12]} 26. Qxc4+ {[%emt 0:00:04]} Kh7 {[%emt 0:00:22]} 27. Qc3 {[%emt 0:02:50]} Rc8 {[%emt 0:06:29]} 28. Ne5 {[%emt 0:02:49]} Qd5 {[%emt 0:00:58]} 29. Qc2 {[%emt 0:01:09]} Qe6 {[%emt 0:06:28]} 30. Qd3 {[%emt 0:01:18]} Bb4 {[%emt 0:01:48]} 31. Re2 {[%emt 0:00:20]} Re8 {[%emt 0:01:56]} 32. Qd4 {[%emt 0:01:38]} Qd6 {[%emt 0:01:37]} 33. Qe3 {[%emt 0:01:42]} Nxe5 {[%emt 0:04:42]} 34. Bxe5 {[%emt 0:00:12]} Qd1+ {[%emt 0:00:05]} 35. Kg2 {[%emt 0:00:03]} Qd5+ {[%emt 0:00:11]} 36. f3 {[%emt 0:00:33]} Bd6 {[%emt 0:00:31]} 37. Qf4 {[%emt 0:00:37]} Rxe5 {[%emt 0:00:19]} 38. Rd2 {[%emt 0:00:35]} Re2+ {[%emt 0:00:10]} 39. Rxe2 {[%emt 0:00:10]} Bxf4 {[%emt 0:00:07]} 40. gxf4 {[%emt 0:00:05]} Qc4 {[%emt 0:00:11]} 41. Rf2 {[%emt 0:00:20]} Qxf4 {[%emt 0:00:06]} 42. Rb2 {[%emt 0:00:07]} Qd4 {[%emt 0:00:12]} 43. Re2 {[%emt 0:00:06]} a5 {[%emt 0:00:06]} 44. Rf2 {[%emt 0:00:07]} b5 {[%emt 0:00:02]} 45. Re2 {[%emt 0:00:04]} b4 {[%emt 0:00:04]} 46. Rf2 {[%emt 0:00:05]} a4 {[%emt 0:00:04]} 47. Re2 {[%emt 0:00:04]} b3 {[%emt 0:00:05]} 48. axb3 {[%emt 0:00:13]} axb3 {[%emt 0:00:04]} 49. f4 {[%emt 0:00:06]} b2 {[%emt 0:00:03]} 50. h4 {[%emt 0:00:03]} b1=Q {[%emt 0:00:07]} 51. h5 {[%emt 0:00:05]} Qbg1+ {[%emt 0:00:12]} 52. Kh3 {[%emt 0:00:08]} Qd3+ {[%emt 0:00:06]} 53. Re3 {[%emt 0:00:07]} Qdxe3+ {[%emt 0:00:04]} 54. Kh4 {[%emt 0:00:01]} Qeg3# {[%emt 0:00:09]} 0-1

[Event "34th MPL National U12 Chess-ch 2022"]
[Site "Mysore"]
[Date "2022.04.10"]
[Round "3.6"]
[White "Mithiran A"]
[Black "Gandhi, Aakash"]
[Result "0-1"]
[ECO "C11"]
[WhiteElo "1338"]
[BlackElo "1698"]
[Annotator "NA RC"]
[PlyCount "52"]
[EventDate "2022.04.09"]
[EventCountry "IND"]
[SourceTitle "playchess.com"]
[Source "ChessBase"]
[SourceQuality "1"]
[TimeControl "5400+30"]

1. e4 {[%emt 0:00:03]} e6 {[%emt 0:00:34]} 2. d4 {[%emt 0:00:09]} d5 {[%emt 0:00:36]} 3. Nc3 {[%emt 0:00:07]} Nf6 {[%emt 0:00:04]} 4. e5 {[%emt 0:00:09]} Nfd7 {[%emt 0:00:25]} 5. Nce2 {[%emt 0:00:10]} c5 {[%emt 0:01:51]} 6. c3 {[%emt 0:00:07]} Nc6 {[%emt 0:01:02]} 7. f4 {[%emt 0:00:10]} Be7 {[%emt 0:00:49]} 8. Nf3 {[%emt 0:00:12]} f6 {[%emt 0:00:18]} 9. Ng3 {[%emt 0:00:40]} cxd4 {[%emt 0:00:43]} 10. cxd4 {[%emt 0:00:50]} fxe5 {[%emt 0:00:32]} 11. fxe5 {[%emt 0:00:20]} O-O {[%emt 0:00:23]} 12. Bd3 {[%emt 0:01:24]} Qb6 {[%emt 0:00:37]} 13. Ne2 {[%emt 0:04:55]} Kh8 {[%emt 0:07:08]} 14. Qb3 {[%emt 0:09:33]} Bb4+ {[%emt 0:04:22]} 15. Bd2 {[%emt 0:01:54]} Bxd2+ {[%emt 0:02:06]} 16. Nxd2 {[%emt 0:00:16]} Qd8 {[%emt 0:00:18]} 17. O-O-O {[%emt 0:06:53]} Nb6 {[%emt 0:04:35]} 18. Rhf1 {[%emt 0:00:27]} Bd7 {[%emt 0:00:36]} 19. Bc2 {[%emt 0:00:46]} Qh4 {[%emt 0:02:27]} 20. Qa3 {[%emt 0:04:42]} Rfc8 {[%emt 0:04:53]} 21. Rf4 {[%emt 0:02:38]} Qe7 {[%emt 0:02:45]} 22. Qh3 {[%emt 0:00:55]} g5 {[%emt 0:01:50]} 23. Rf6 {[%emt 0:01:45]} Nb4 {[%emt 0:00:13]} 24. Nc3 {[%emt 0:00:24]} Na4 {[%emt 0:02:47]} 25. Rdf1 {[%emt 0:05:04]} Nxc3 {[%emt 0:00:44]} 26. Rf7 {[%emt 0:00:46]} Nbxa2# {[%emt 0:00:01]} 0-1

[Event "34th MPL National U12 Chess-ch 2022"]
[Site "Mysore"]
[Date "2022.04.10"]
[Round "4.1"]
[White "Venkat, Raghav"]
[Black "Adireddy Arjun"]
[Result "1/2-1/2"]
[ECO "B30"]
[WhiteElo "2110"]
[BlackElo "1796"]
[Annotator "NA RC"]
[PlyCount "63"]
[EventDate "2022.04.09"]
[EventCountry "IND"]
[SourceTitle "playchess.com"]
[Source "ChessBase"]
[SourceQuality "1"]
[TimeControl "5400+30"]

1. e4 {[%emt 0:00:08]} c5 {[%emt 0:00:10]} 2. Nf3 {[%emt 0:00:08]} d6 {[%emt 0:00:09]} 3. d3 {[%emt 0:00:06]} Nc6 {[%emt 0:02:38]} 4. g3 {[%emt 0:00:36]} g6 {[%emt 0:01:00]} 5. Bg2 {[%emt 0:00:36]} Bg7 {[%emt 0:00:06]} 6. c3 {[%emt 0:00:30]} e5 {[%emt 0:03:32]} 7. Be3 {[%emt 0:01:00]} Nge7 {[%emt 0:01:43]} 8. Na3 {[%emt 0:02:20]} a6 {[%emt 0:06:07]} 9. O-O {[%emt 0:01:10]} b5 {[%emt 0:04:33]} 10. d4 {[%emt 0:01:22]} cxd4 {[%emt 0:02:30]} 11. cxd4 {[%emt 0:00:08]} exd4 {[%emt 0:04:17]} 12. Nxd4 {[%emt 0:02:18]} Bb7 {[%emt 0:01:51]} 13. Nac2 {[%emt 0:02:46]} O-O {[%emt 0:04:56]} 14. Rc1 {[%emt 0:04:26]} Qd7 {[%emt 0:02:45]} 15. Qd2 {[%emt 0:05:29]} Ne5 {[%emt 0:03:13]} 16. b3 {[%emt 0:02:01]} f5 {[%emt 0:01:13]} 17. exf5 {[%emt 0:02:38]} Bxg2 {[%emt 0:01:44]} 18. Kxg2 {[%emt 0:00:08]} Nxf5 {[%emt 0:00:39]} 19. Nxf5 {[%emt 0:02:39]} Qb7+ {[%emt 0:05:58]} 20. f3 {[%emt 0:00:14]} Rxf5 {[%emt 0:00:20]} 21. Nd4 {[%emt 0:00:32]} Rf7 {[%emt 0:00:43]} 22. Bf4 {[%emt 0:01:20]} Rc8 {[%emt 0:03:04]} 23. Rxc8+ {[%emt 0:02:47]} Qxc8 {[%emt 0:00:01]} 24. Rc1 {[%emt 0:00:15]} Rc7 {[%emt 0:01:28]} 25. Rxc7 {[%emt 0:03:20]} Qxc7 {[%emt 0:00:02]} 26. Ne6 {[%emt 0:02:16]} Qc6 {[%emt 0:01:42]} 27. Bxe5 {[%emt 0:00:58]} Bxe5 {[%emt 0:00:21]} 28. Nd8 {[%emt 0:14:33]} Qc5 {[%emt 0:03:05]} 29. Ne6 {[%emt 0:03:16]} Qc6 {[%emt 0:00:25]} 30. Nd8 {[%emt 0:01:43]} Qc5 {[%emt 0:02:04]} 31. Ne6 {[%emt 0:00:06]} Qc6 {[%emt 0:03:39]} 32. Nd8 {[%emt 0:01:16]} 1/2-1/2